[Event "GrandPrix_29.05"]
[Site "Chess.com"]
[Date "2020.05.29"]
[Round "4"]
[White "ArnaudovP"]
[Black "Firegrizzly"]
[Result "1-0"]
[WhiteElo "2399"]
[BlackElo "2298"]
[TimeControl "600+2"]
[EndTime "10:58:37 PDT"]
[Termination "ArnaudovP won on time"]

1. Nf3 {[%clk 0:09:58.2]} 1... d5 {[%clk 0:09:56.8]} 2. d4 {[%clk 0:09:57.1]}
2... Nf6 {[%clk 0:09:55.9]} 3. c4 {[%clk 0:09:52.8]} 3... e6 {[%clk 0:09:56.8]}
4. g3 {[%clk 0:09:53.1]} 4... Bb4+ {[%clk 0:09:51.8]} 5. Bd2 {[%clk 0:09:52]}
5... a5 {[%clk 0:09:51.7]} 6. Bg2 {[%clk 0:09:50.9]} 6... O-O {[%clk 0:09:51.8]}
7. a3 {[%clk 0:09:38]} 7... Be7 {[%clk 0:09:31.8]} 8. O-O {[%clk 0:09:23.8]}
8... dxc4 {[%clk 0:09:27.1]} 9. Nc3 {[%clk 0:09:23.5]} 9... c6 {[%clk
0:09:06.1]} 10. e4 {[%clk 0:09:19.7]} 10... b5 {[%clk 0:09:06.1]} 11. b3 {[%clk
0:08:22.9]} 11... cxb3 {[%clk 0:09:02.2]} 12. Qxb3 {[%clk 0:08:22.2]} 12... Ba6
{[%clk 0:08:47]} 13. Rfe1 {[%clk 0:08:16.6]} 13... Nfd7 {[%clk 0:08:30.9]} 14.
e5 {[%clk 0:08:10.5]} 14... Qb6 {[%clk 0:06:01.4]} 15. Bg5 {[%clk 0:07:29.3]}
15... Bxg5 {[%clk 0:05:52.6]} 16. Nxg5 {[%clk 0:07:28.7]} 16... h6 {[%clk
0:05:28.8]} 17. Nf3 {[%clk 0:07:22.2]} 17... c5 {[%clk 0:05:08.4]} 18. d5 {[%clk
0:07:10.1]} 18... c4 {[%clk 0:05:04]} 19. Qc2 {[%clk 0:06:49.3]} 19... b4 {[%clk
0:04:35.4]} 20. axb4 {[%clk 0:06:43.1]} 20... axb4 {[%clk 0:04:35.4]} 21. Na4
{[%clk 0:06:07.9]} 21... Qa7 {[%clk 0:04:11.5]} 22. dxe6 {[%clk 0:06:06.2]}
22... fxe6 {[%clk 0:04:10.8]} 23. Qg6 {[%clk 0:05:48.5]} 23... Bb7 {[%clk
0:02:07.3]} 24. Qxe6+ {[%clk 0:04:27.2]} 24... Kh7 {[%clk 0:02:04.6]} 25. Qxc4
{[%clk 0:04:22.4]} 25... Nb6 {[%clk 0:01:15.7]} 26. Nxb6 {[%clk 0:04:02.5]}
26... Qxa1 {[%clk 0:00:50.7]} 27. Nxa8 {[%clk 0:04:00.6]} 27... Qxa8 {[%clk
0:00:42.6]} 28. Qd3+ {[%clk 0:03:51.3]} 28... Kg8 {[%clk 0:00:33]} 29. Qb3+
{[%clk 0:03:06.5]} 29... Kh7 {[%clk 0:00:30.2]} 30. Nh4 {[%clk 0:02:24.9]} 30...
Bxg2 {[%clk 0:00:29.4]} 31. Nxg2 {[%clk 0:02:23.1]} 31... Nc6 {[%clk 0:00:22.4]}
32. e6 {[%clk 0:02:15.3]} 32... Qa7 {[%clk 0:00:09.8]} 33. Nf4 {[%clk
0:01:46.8]} 33... Nd4 {[%clk 0:00:04.5]} 34. Qd3+ {[%clk 0:01:43.8]} 34... Kg8
{[%clk 0:00:05.3]} 35. e7 {[%clk 0:01:35.6]} 35... Re8 {[%clk 0:00:06.3]} 36.
Re4 {[%clk 0:01:15.4]} 1-0

[Event "GrandPrix_29.05"]
[Site "Chess.com"]
[Date "2020.05.29"]
[Round "4"]
[White "madamDD"]
[Black "jacky72"]
[Result "0-1"]
[WhiteElo "2316"]
[BlackElo "2454"]
[TimeControl "600+2"]
[EndTime "10:58:42 PDT"]
[Termination "jacky72 won on time"]

1. e4 {[%clk 0:10:01.9]} 1... e5 {[%clk 0:09:55.3]} 2. Nf3 {[%clk 0:10:02.2]}
2... Nc6 {[%clk 0:09:51.4]} 3. Nc3 {[%clk 0:10:02.1]} 3... Nf6 {[%clk 0:09:52]}
4. Bb5 {[%clk 0:10:01.9]} 4... Nd4 {[%clk 0:09:51.3]} 5. Bc4 {[%clk 0:09:56.2]}
5... Bc5 {[%clk 0:09:50.7]} 6. d3 {[%clk 0:09:43.7]} 6... d6 {[%clk 0:09:50.8]}
7. Na4 {[%clk 0:09:26.4]} 7... b5 {[%clk 0:08:57.1]} 8. Nxd4 {[%clk 0:09:22.7]}
8... bxc4 {[%clk 0:08:45.6]} 9. Nf5 {[%clk 0:09:06.2]} 9... Bxf5 {[%clk
0:08:43.7]} 10. exf5 {[%clk 0:09:06.3]} 10... cxd3 {[%clk 0:08:33.5]} 11. Qxd3
{[%clk 0:08:56.8]} 11... Bb4+ {[%clk 0:08:13.6]} 12. c3 {[%clk 0:08:49.1]} 12...
Qd7 {[%clk 0:08:14.9]} 13. Qa6 {[%clk 0:08:00.8]} 13... Bc5 {[%clk 0:07:41.5]}
14. Nxc5 {[%clk 0:07:56.3]} 14... dxc5 {[%clk 0:07:43.4]} 15. Bh6 {[%clk
0:07:43.1]} 15... O-O {[%clk 0:07:15.9]} 16. Be3 {[%clk 0:07:01.8]} 16... Qxf5
{[%clk 0:06:53.8]} 17. Bxc5 {[%clk 0:06:42.1]} 17... Qe4+ {[%clk 0:06:27.1]} 18.
Qe2 {[%clk 0:06:41.3]} 18... Qxg2 {[%clk 0:06:25.7]} 19. O-O-O {[%clk
0:06:36.3]} 19... Qg5+ {[%clk 0:06:12]} 20. Kb1 {[%clk 0:06:23.2]} 20... Rfd8
{[%clk 0:06:07.8]} 21. Rdg1 {[%clk 0:05:57.3]} 21... Qf5+ {[%clk 0:06:03.9]} 22.
Ka1 {[%clk 0:05:57.4]} 22... Nd5 {[%clk 0:05:43.5]} 23. h4 {[%clk 0:05:33.3]}
23... Nf4 {[%clk 0:05:29.6]} 24. Qa6 {[%clk 0:04:10.8]} 24... Nd3 {[%clk
0:03:57.9]} 25. Be3 {[%clk 0:02:43.7]} 25... Nxf2 {[%clk 0:03:40.1]} 26. Bxf2
{[%clk 0:00:34.8]} 26... Qxf2 {[%clk 0:03:38.9]} 27. Rf1 {[%clk 0:00:29.3]}
27... Qb6 {[%clk 0:03:35.7]} 28. Qc4 {[%clk 0:00:29.1]} 28... Rd7 {[%clk
0:03:29]} 29. Rhg1 {[%clk 0:00:29.5]} 29... Rad8 {[%clk 0:03:29.6]} 30. Qg4
{[%clk 0:00:20.2]} 30... g6 {[%clk 0:03:30.9]} 31. a3 {[%clk 0:00:15.2]} 31...
Rd2 {[%clk 0:03:29.8]} 32. Rb1 {[%clk 0:00:15.6]} 32... Rb8 {[%clk 0:03:19.1]}
33. Rg2 {[%clk 0:00:14.1]} 33... h5 {[%clk 0:03:10.6]} 34. Qg5 {[%clk
0:00:12.7]} 34... Rxg2 {[%clk 0:03:10]} 35. Qxg2 {[%clk 0:00:14.6]} 35... Qf6
{[%clk 0:02:59.2]} 36. Rf1 {[%clk 0:00:14.3]} 36... Qxh4 {[%clk 0:02:58.5]} 37.
Qd5 {[%clk 0:00:14.1]} 37... Qe7 {[%clk 0:02:55.8]} 38. Rg1 {[%clk 0:00:13.5]}
38... Rd8 {[%clk 0:02:51.9]} 39. Qc4 {[%clk 0:00:10.4]} 39... Kg7 {[%clk
0:02:42.8]} 40. Qa6 {[%clk 0:00:10.8]} 40... c5 {[%clk 0:02:42.2]} 41. Qc6
{[%clk 0:00:10.2]} 41... Rd6 {[%clk 0:02:35.1]} 42. Qf3 {[%clk 0:00:10.7]} 42...
Kh7 {[%clk 0:02:29.8]} 43. Rh1 {[%clk 0:00:10.8]} 43... e4 {[%clk 0:02:27]} 44.
Qe3 {[%clk 0:00:10.3]} 44... Rd3 {[%clk 0:02:23.3]} 45. Qe2 {[%clk 0:00:11.5]}
45... f5 {[%clk 0:02:21.8]} 46. Re1 {[%clk 0:00:11.2]} 46... c4 {[%clk
0:02:22.5]} 47. Rg1 {[%clk 0:00:10.2]} 47... e3 {[%clk 0:02:20.1]} 48. Qg2
{[%clk 0:00:11.2]} 48... Rd6 {[%clk 0:02:18.1]} 49. Qa8 {[%clk 0:00:11.7]} 49...
e2 {[%clk 0:02:17.2]} 50. Ka2 {[%clk 0:00:09.1]} 50... Rd1 {[%clk 0:02:15.2]}
0-1

[Event "GrandPrix_29.05"]
[Site "Chess.com"]
[Date "2020.05.29"]
[Round "4"]
[White "metra93"]
[Black "Meizon19"]
[Result "0-1"]
[WhiteElo "2379"]
[BlackElo "2292"]
[TimeControl "600+2"]
[EndTime "10:58:44 PDT"]
[Termination "Meizon19 won by checkmate"]

1. d4 {[%clk 0:10:01.7]} 1... Nf6 {[%clk 0:10:00.5]} 2. Nc3 {[%clk 0:10:01.9]}
2... d5 {[%clk 0:09:56]} 3. Bf4 {[%clk 0:10:02.5]} 3... g6 {[%clk 0:09:54.8]} 4.
e3 {[%clk 0:10:01.8]} 4... Bg7 {[%clk 0:09:55.2]} 5. h4 {[%clk 0:10:02.2]} 5...
h6 {[%clk 0:09:50.6]} 6. Qd2 {[%clk 0:09:27.5]} 6... c6 {[%clk 0:09:49.6]} 7.
O-O-O {[%clk 0:09:24.6]} 7... b5 {[%clk 0:09:43.8]} 8. f3 {[%clk 0:09:24.1]}
8... Nbd7 {[%clk 0:09:36.8]} 9. Kb1 {[%clk 0:05:45.1]} 9... Nb6 {[%clk
0:09:20.6]} 10. Bd3 {[%clk 0:05:08.9]} 10... a5 {[%clk 0:08:30.2]} 11. e4 {[%clk
0:04:48.5]} 11... Be6 {[%clk 0:07:50.9]} 12. exd5 {[%clk 0:04:23.9]} 12... Nfxd5
{[%clk 0:07:47.3]} 13. Be5 {[%clk 0:04:13.5]} 13... Bxe5 {[%clk 0:07:23.2]} 14.
dxe5 {[%clk 0:04:13.7]} 14... Nxc3+ {[%clk 0:06:46.4]} 15. Qxc3 {[%clk
0:04:15.6]} 15... Qd5 {[%clk 0:06:47]} 16. b3 {[%clk 0:04:01.9]} 16... b4 {[%clk
0:06:39.9]} 17. Qe1 {[%clk 0:03:25.4]} 17... Qc5 {[%clk 0:06:21.3]} 18. Be4
{[%clk 0:02:45]} 18... a4 {[%clk 0:05:44.8]} 19. Ne2 {[%clk 0:02:34.1]} 19...
axb3 {[%clk 0:05:37.5]} 20. cxb3 {[%clk 0:02:32.9]} 20... O-O {[%clk 0:05:04.7]}
21. h5 {[%clk 0:01:58.4]} 21... g5 {[%clk 0:03:44.7]} 22. Nd4 {[%clk 0:01:57.9]}
22... Qa5 {[%clk 0:03:30.9]} 23. Qe2 {[%clk 0:01:44.4]} 23... Nd5 {[%clk
0:03:09.8]} 24. Bxd5 {[%clk 0:01:36.7]} 24... Bxd5 {[%clk 0:03:11]} 25. Qb2
{[%clk 0:01:17.5]} 25... e6 {[%clk 0:03:06.3]} 26. Rhe1 {[%clk 0:01:01.3]} 26...
Rfd8 {[%clk 0:03:06.6]} 27. f4 {[%clk 0:00:51.4]} 27... c5 {[%clk 0:03:03.3]}
28. Nc2 {[%clk 0:00:39.9]} 28... c4 {[%clk 0:02:47.3]} 29. bxc4 {[%clk 0:00:24]}
29... Bxc4 {[%clk 0:02:47.7]} 30. Rxd8+ {[%clk 0:00:25.9]} 30... Rxd8 {[%clk
0:02:46]} 31. Nxb4 {[%clk 0:00:22]} 31... Bxa2+ {[%clk 0:02:44.7]} 32. Kc1
{[%clk 0:00:19]} 32... Rb8 {[%clk 0:02:25.7]} 33. Re4 {[%clk 0:00:19.6]} 33...
Bd5 {[%clk 0:02:23.2]} 34. Rd4 {[%clk 0:00:19.9]} 34... gxf4 {[%clk 0:02:09.3]}
35. Rxf4 {[%clk 0:00:19.9]} 35... Qc5+ {[%clk 0:02:00.5]} 36. Kd2 {[%clk
0:00:17.4]} 36... Bc4 {[%clk 0:01:57.3]} 37. Rg4+ {[%clk 0:00:10]} 37... Kf8
{[%clk 0:01:55.1]} 38. Qa3 {[%clk 0:00:03.7]} 38... Rxb4 {[%clk 0:01:32.7]} 39.
Qa8+ {[%clk 0:00:03.6]} 39... Ke7 {[%clk 0:01:34.2]} 40. Qh8 {[%clk 0:00:03.3]}
40... Qf2+ {[%clk 0:01:31.4]} 41. Kc3 {[%clk 0:00:04.3]} 41... Qb2# {[%clk
0:01:31.8]} 0-1

[Event "GrandPrix_29.05"]
[Site "Chess.com"]
[Date "2020.05.29"]
[Round "4"]
[White "mishikomchedlishvili"]
[Black "OK97"]
[Result "1-0"]
[WhiteElo "2272"]
[BlackElo "2466"]
[TimeControl "600+2"]
[EndTime "10:58:58 PDT"]
[Termination "mishikomchedlishvili won by resignation"]

1. d4 {[%clk 0:09:56.9]} 1... Nf6 {[%clk 0:10:00]} 2. g3 {[%clk 0:09:54.9]} 2...
d5 {[%clk 0:09:38.5]} 3. Bg2 {[%clk 0:09:55]} 3... c5 {[%clk 0:09:36.7]} 4. Nf3
{[%clk 0:09:53.9]} 4... cxd4 {[%clk 0:09:35.7]} 5. O-O {[%clk 0:09:53.8]} 5...
h6 {[%clk 0:09:09.7]} 6. b3 {[%clk 0:09:51.1]} 6... g5 {[%clk 0:07:31.4]} 7.
Nxd4 {[%clk 0:09:39.2]} 7... Bg7 {[%clk 0:07:30.1]} 8. Bb2 {[%clk 0:09:37.9]}
8... O-O {[%clk 0:07:20.5]} 9. c4 {[%clk 0:09:14]} 9... e5 {[%clk 0:07:05.3]}
10. Nf3 {[%clk 0:08:40.7]} 10... e4 {[%clk 0:07:06.2]} 11. Nd4 {[%clk
0:08:41.8]} 11... dxc4 {[%clk 0:06:19.1]} 12. bxc4 {[%clk 0:08:40.4]} 12... e3
{[%clk 0:06:14.7]} 13. fxe3 {[%clk 0:08:15.2]} 13... Ng4 {[%clk 0:06:11.6]} 14.
Qb3 {[%clk 0:08:10.4]} 14... Qe7 {[%clk 0:05:11.2]} 15. Nc2 {[%clk 0:07:17.8]}
15... Bxb2 {[%clk 0:04:48.6]} 16. Qxb2 {[%clk 0:07:18.6]} 16... Nxe3 {[%clk
0:04:11.8]} 17. Nxe3 {[%clk 0:07:17.5]} 17... Qxe3+ {[%clk 0:04:13.7]} 18. Kh1
{[%clk 0:07:18.7]} 18... Nc6 {[%clk 0:04:14.9]} 19. Nc3 {[%clk 0:07:11.9]} 19...
Qe5 {[%clk 0:04:13]} 20. Qd2 {[%clk 0:06:04.1]} 20... Be6 {[%clk 0:04:00.7]} 21.
Nd5 {[%clk 0:06:03.9]} 21... Rad8 {[%clk 0:03:40.2]} 22. Rad1 {[%clk 0:06:03]}
22... Kg7 {[%clk 0:03:31]} 23. Rf3 {[%clk 0:05:55.1]} 23... Bxd5 {[%clk
0:02:50.2]} 24. cxd5 {[%clk 0:05:54.7]} 24... Qd6 {[%clk 0:02:23.6]} 25. Qb2+
{[%clk 0:04:48.8]} 25... Ne5 {[%clk 0:02:24.3]} 26. Rf5 {[%clk 0:04:49.4]} 26...
Rfe8 {[%clk 0:02:15.5]} 27. Qxb7 {[%clk 0:04:49.5]} 27... Re7 {[%clk 0:01:58.4]}
28. Qb2 {[%clk 0:04:47.4]} 28... Kg8 {[%clk 0:01:48.4]} 29. Qd4 {[%clk
0:04:25.7]} 29... Rc8 {[%clk 0:01:43]} 30. Rdf1 {[%clk 0:03:15]} 30... Rc4
{[%clk 0:01:42.2]} 31. Qd2 {[%clk 0:02:53.1]} 31... Ng4 {[%clk 0:01:28.6]} 32.
e4 {[%clk 0:02:42]} 32... Re5 {[%clk 0:00:25.2]} 33. Rxf7 {[%clk 0:02:16.1]}
33... Qc5 {[%clk 0:00:18.4]} 34. d6 {[%clk 0:01:41.7]} 34... Rc2 {[%clk
0:00:18.6]} 35. Qxc2 {[%clk 0:01:13]} 35... Qxc2 {[%clk 0:00:19.1]} 36. d7
{[%clk 0:01:14.2]} 36... Qd2 {[%clk 0:00:04.5]} 37. Rf8+ {[%clk 0:01:11.6]}
37... Kg7 {[%clk 0:00:05.9]} 38. d8=Q {[%clk 0:01:12]} 38... Nf2+ {[%clk
0:00:05]} 39. R1xf2 {[%clk 0:01:10.2]} 1-0

[Event "GrandPrix_29.05"]
[Site "Chess.com"]
[Date "2020.05.29"]
[Round "4"]
[White "N4700000"]
[Black "PavelShkapenko"]
[Result "1/2-1/2"]
[WhiteElo "2463"]
[BlackElo "2330"]
[TimeControl "600+2"]
[EndTime "10:59:00 PDT"]
[Termination "Game drawn by agreement"]

1. e4 {[%clk 0:10:01.9]} 1... c5 {[%clk 0:09:59.9]} 2. Nf3 {[%clk 0:10:01.9]}
2... e6 {[%clk 0:10:01]} 3. c4 {[%clk 0:10:00.8]} 3... Nc6 {[%clk 0:10:00.8]} 4.
Nc3 {[%clk 0:10:01.6]} 4... Nf6 {[%clk 0:10:01.9]} 5. Be2 {[%clk 0:10:00]} 5...
d5 {[%clk 0:10:02.5]} 6. exd5 {[%clk 0:10:00.4]} 6... exd5 {[%clk 0:10:04.1]} 7.
d4 {[%clk 0:10:01.2]} 7... Be6 {[%clk 0:10:04]} 8. cxd5 {[%clk 0:09:49.5]} 8...
Nxd5 {[%clk 0:10:04.5]} 9. O-O {[%clk 0:09:47.7]} 9... cxd4 {[%clk 0:08:29.6]}
10. Nxd4 {[%clk 0:09:45.6]} 10... Nxc3 {[%clk 0:08:30.1]} 11. bxc3 {[%clk
0:09:44.8]} 11... Nxd4 {[%clk 0:08:31.6]} 12. cxd4 {[%clk 0:09:41.9]} 12... Be7
{[%clk 0:08:33.1]} 13. Bf3 {[%clk 0:09:36.2]} 13... O-O {[%clk 0:08:12.1]} 14.
Bxb7 {[%clk 0:09:23.1]} 14... Rb8 {[%clk 0:08:12.5]} 15. Bf3 {[%clk 0:09:15.3]}
15... Bd5 {[%clk 0:08:13.2]} 16. Be3 {[%clk 0:09:12.1]} 16... Bf6 {[%clk
0:08:13]} 17. Bxd5 {[%clk 0:09:06.8]} 17... Qxd5 {[%clk 0:08:13.8]} 18. Qa4
{[%clk 0:09:06.9]} 18... a5 {[%clk 0:07:23.4]} 19. Rab1 {[%clk 0:09:04.2]} 19...
g6 {[%clk 0:07:18.9]} 20. h3 {[%clk 0:08:41.5]} 20... Kg7 {[%clk 0:07:13.3]} 21.
Rfc1 {[%clk 0:08:32.7]} 21... Rb4 {[%clk 0:06:19.7]} 22. Rxb4 {[%clk 0:08:24.1]}
22... axb4 {[%clk 0:06:21.2]} 23. Rc5 {[%clk 0:07:32.2]} 23... Ra8 {[%clk
0:06:03.9]} 24. Qxb4 {[%clk 0:07:13.2]} 24... Qxa2 {[%clk 0:06:04.6]} 25. Qc4
{[%clk 0:06:40.2]} 25... Qxc4 {[%clk 0:05:12.1]} 26. Rxc4 {[%clk 0:06:42.1]}
26... Ra1+ {[%clk 0:05:13.3]} 27. Kh2 {[%clk 0:06:40.3]} 27... h5 {[%clk
0:05:08.1]} 28. Kg3 {[%clk 0:06:24.4]} 28... h4+ {[%clk 0:04:38.7]} 29. Kf3
{[%clk 0:06:23.2]} 29... Rd1 {[%clk 0:04:39.7]} 30. Rc6 {[%clk 0:05:49.9]} 30...
Be7 {[%clk 0:04:01.1]} 31. Rc1 {[%clk 0:05:43.1]} 31... Rxc1 {[%clk 0:04:00.9]}
32. Bxc1 {[%clk 0:05:45]} 32... f5 {[%clk 0:04:01.4]} 33. d5 {[%clk 0:05:32.8]}
33... g5 {[%clk 0:03:58.3]} 34. Bb2+ {[%clk 0:05:26.8]} 34... Bf6 {[%clk
0:03:59.4]} 35. Bxf6+ {[%clk 0:04:18.8]} 35... Kxf6 {[%clk 0:03:59.9]} 36. Ke3
{[%clk 0:04:19.3]} 36... Ke5 {[%clk 0:04:01.4]} 37. f4+ {[%clk 0:04:19.8]} 37...
gxf4+ {[%clk 0:04:02.9]} 38. Kf3 {[%clk 0:04:20.2]} 38... Kxd5 {[%clk
0:04:04.6]} 39. Kxf4 {[%clk 0:04:21.3]} 39... Ke6 {[%clk 0:03:44.2]} 40. Kg5
{[%clk 0:04:19.4]} 40... Ke5 {[%clk 0:03:39.6]} 41. Kxh4 {[%clk 0:04:18.5]}
41... Kf4 {[%clk 0:03:32.7]} 42. g4 {[%clk 0:01:59]} 42... Ke5 {[%clk
0:03:28.7]} 43. g5 {[%clk 0:01:54.8]} 43... f4 {[%clk 0:03:12.3]} 44. Kg4 {[%clk
0:01:52.6]} 44... Ke4 {[%clk 0:03:13.6]} 45. g6 {[%clk 0:01:50]} 45... f3 {[%clk
0:03:15]} 46. Kg3 {[%clk 0:01:23.5]} 46... Ke3 {[%clk 0:03:15.6]} 47. g7 {[%clk
0:01:23.2]} 47... f2 {[%clk 0:03:16.9]} 48. g8=Q {[%clk 0:01:22.4]} 48... f1=Q
{[%clk 0:03:17.2]} 49. Qg5+ {[%clk 0:01:06.1]} 49... Ke4 {[%clk 0:03:05.8]} 50.
Qe7+ {[%clk 0:01:04.1]} 50... Kd5 {[%clk 0:02:57.9]} 51. h4 {[%clk 0:01:01.6]}
51... Qf5 {[%clk 0:02:22.1]} 52. Qb7+ {[%clk 0:00:41.9]} 52... Ke6 {[%clk
0:02:02.1]} 53. Qc6+ {[%clk 0:00:23.6]} 53... Kf7 {[%clk 0:01:56.9]} 54. Qf3
{[%clk 0:00:21.6]} 1/2-1/2

[Event "GrandPrix_29.05"]
[Site "Chess.com"]
[Date "2020.05.29"]
[Round "4"]
[White "BogdanBelyakov89"]
[Black "Salnaa"]
[Result "1-0"]
[WhiteElo "2344"]
[BlackElo "2126"]
[TimeControl "600+2"]
[EndTime "10:59:03 PDT"]
[Termination "BogdanBelyakov89 won by resignation"]

1. e4 {[%clk 0:10:01.9]} 1... c5 {[%clk 0:10:00.5]} 2. c3 {[%clk 0:10:01.3]}
2... Nf6 {[%clk 0:10:00.8]} 3. e5 {[%clk 0:10:01.8]} 3... Nd5 {[%clk 0:10:01.8]}
4. Nf3 {[%clk 0:10:02.8]} 4... Nc6 {[%clk 0:10:00.4]} 5. d4 {[%clk 0:10:03.6]}
5... cxd4 {[%clk 0:10:01.1]} 6. cxd4 {[%clk 0:10:05.5]} 6... d6 {[%clk
0:10:01.5]} 7. Bc4 {[%clk 0:10:05.8]} 7... Nb6 {[%clk 0:10:02.6]} 8. Bb5 {[%clk
0:10:03.7]} 8... Bd7 {[%clk 0:10:03.6]} 9. Nc3 {[%clk 0:09:44.4]} 9... dxe5
{[%clk 0:09:00.3]} 10. dxe5 {[%clk 0:09:40.4]} 10... g6 {[%clk 0:09:00.7]} 11.
O-O {[%clk 0:09:09.9]} 11... Bg7 {[%clk 0:09:01.1]} 12. Qe2 {[%clk 0:09:09.4]}
12... O-O {[%clk 0:08:57.2]} 13. Rd1 {[%clk 0:09:04.9]} 13... Qc8 {[%clk
0:08:07.1]} 14. Be3 {[%clk 0:08:17.2]} 14... Bg4 {[%clk 0:07:19.7]} 15. Bxb6
{[%clk 0:07:26.7]} 15... axb6 {[%clk 0:07:16.9]} 16. Nd5 {[%clk 0:07:26.9]}
16... Bxf3 {[%clk 0:05:00.7]} 17. gxf3 {[%clk 0:07:05.2]} 17... Qe6 {[%clk
0:04:21.2]} 18. Bxc6 {[%clk 0:06:36.4]} 18... bxc6 {[%clk 0:04:11.5]} 19. Nc7
{[%clk 0:06:37]} 19... Qxe5 {[%clk 0:04:09.5]} 20. Qxe5 {[%clk 0:06:37.3]} 20...
Bxe5 {[%clk 0:04:11.4]} 21. Nxa8 {[%clk 0:06:38.8]} 21... Rxa8 {[%clk
0:04:12.2]} 22. Rd2 {[%clk 0:06:37.1]} 22... c5 {[%clk 0:03:52.6]} 23. a4 {[%clk
0:06:15.6]} 23... b5 {[%clk 0:03:02.3]} 24. a5 {[%clk 0:06:11.4]} 24... Ra6
{[%clk 0:03:03.2]} 25. Ra2 {[%clk 0:05:59.1]} 25... Bd6 {[%clk 0:02:57]} 26. Rd5
{[%clk 0:04:43.3]} 26... b4 {[%clk 0:02:23.2]} 27. Kf1 {[%clk 0:04:41.6]} 27...
Kf8 {[%clk 0:02:20.4]} 28. Ke2 {[%clk 0:04:42.5]} 28... Ke8 {[%clk 0:01:38.1]}
29. Kd3 {[%clk 0:04:29.7]} 29... Kd7 {[%clk 0:01:38.7]} 30. Kc4 {[%clk
0:04:30.1]} 30... Kc6 {[%clk 0:01:39.9]} 31. h3 {[%clk 0:03:58.4]} 31... h6
{[%clk 0:01:38]} 32. b3 {[%clk 0:03:54.3]} 32... h5 {[%clk 0:01:25.1]} 33. Ra1
{[%clk 0:03:34.8]} 33... Ra7 {[%clk 0:01:24.3]} 34. Rdd1 {[%clk 0:03:03.9]}
34... Bc7 {[%clk 0:01:19.8]} 35. a6 {[%clk 0:02:59.5]} 35... Bd6 {[%clk
0:01:14.6]} 36. Ra5 {[%clk 0:02:57.1]} 36... Kb6 {[%clk 0:01:05.3]} 37. Rb5+
{[%clk 0:02:56.1]} 37... Kc6 {[%clk 0:01:05.1]} 38. Ra1 {[%clk 0:02:54.9]} 38...
f6 {[%clk 0:00:47.9]} 39. Ra2 {[%clk 0:02:49.7]} 39... g5 {[%clk 0:00:41.4]} 40.
Ra1 {[%clk 0:02:49.3]} 40... e6 {[%clk 0:00:36.6]} 41. Ra2 {[%clk 0:02:40.6]}
41... Be7 {[%clk 0:00:21.5]} 42. Rb8 {[%clk 0:02:30.3]} 42... Bd6 {[%clk
0:00:19.9]} 43. Re8 {[%clk 0:02:29.5]} 43... Kd7 {[%clk 0:00:19.5]} 44. Rh8
{[%clk 0:02:28.9]} 44... Kc6 {[%clk 0:00:13.2]} 45. Rxh5 {[%clk 0:02:17.3]}
45... Be5 {[%clk 0:00:14.5]} 46. Kd3 {[%clk 0:02:09.5]} 46... Bd4 {[%clk
0:00:13.8]} 47. Rh8 {[%clk 0:02:03.8]} 47... Kb6 {[%clk 0:00:11.2]} 48. Re8
{[%clk 0:02:01.9]} 48... e5 {[%clk 0:00:10.1]} 49. Kc4 {[%clk 0:02:02.4]} 49...
f5 {[%clk 0:00:08.7]} 50. Re6+ {[%clk 0:02:01]} 50... Kc7 {[%clk 0:00:09.3]} 51.
Rf6 {[%clk 0:02:00.6]} 51... f4 {[%clk 0:00:07.8]} 52. Rg6 {[%clk 0:02:00.4]}
1-0

[Event "GrandPrix_29.05"]
[Site "Chess.com"]
[Date "2020.05.29"]
[Round "4"]
[White "ftorodent"]
[Black "Skatchkov_V"]
[Result "1-0"]
[WhiteElo "2202"]
[BlackElo "2149"]
[TimeControl "600+2"]
[EndTime "10:59:07 PDT"]
[Termination "ftorodent won by resignation"]

1. d4 {[%clk 0:10:01.9]} 1... Nf6 {[%clk 0:09:49.7]} 2. c4 {[%clk 0:10:01.9]}
2... e6 {[%clk 0:09:43.3]} 3. Nf3 {[%clk 0:10:01.9]} 3... b6 {[%clk 0:09:44.3]}
4. a3 {[%clk 0:10:00.3]} 4... Bb7 {[%clk 0:09:44.9]} 5. Nc3 {[%clk 0:10:00.3]}
5... d5 {[%clk 0:09:46.6]} 6. Bg5 {[%clk 0:09:53.2]} 6... Be7 {[%clk 0:09:47]}
7. cxd5 {[%clk 0:09:45.5]} 7... Nxd5 {[%clk 0:09:35.3]} 8. Bxe7 {[%clk
0:09:43.8]} 8... Qxe7 {[%clk 0:09:35.6]} 9. Nxd5 {[%clk 0:09:44.4]} 9... Bxd5
{[%clk 0:09:32.2]} 10. e3 {[%clk 0:09:27.8]} 10... O-O {[%clk 0:09:31.7]} 11.
Rc1 {[%clk 0:09:28.1]} 11... Rc8 {[%clk 0:09:17.9]} 12. Bc4 {[%clk 0:09:18]}
12... Bxc4 {[%clk 0:08:52.9]} 13. Rxc4 {[%clk 0:09:18]} 13... Nd7 {[%clk
0:08:53.7]} 14. Rc6 {[%clk 0:08:53.2]} 14... Nb8 {[%clk 0:08:54.5]} 15. Rc3
{[%clk 0:08:51.2]} 15... Nd7 {[%clk 0:08:56.2]} 16. O-O {[%clk 0:08:26.9]} 16...
c5 {[%clk 0:08:57.1]} 17. Qc2 {[%clk 0:08:25.6]} 17... Rd8 {[%clk 0:06:59.1]}
18. dxc5 {[%clk 0:08:23.7]} 18... Nxc5 {[%clk 0:07:00]} 19. b4 {[%clk
0:08:23.3]} 19... Nb7 {[%clk 0:05:52.5]} 20. h3 {[%clk 0:07:21.4]} 20... Nd6
{[%clk 0:04:42.8]} 21. Rc7 {[%clk 0:07:11.9]} 21... Qf6 {[%clk 0:04:22.2]} 22.
Qc6 {[%clk 0:07:01.9]} 22... Ne8 {[%clk 0:03:02.7]} 23. Rd7 {[%clk 0:07:00.7]}
23... Rac8 {[%clk 0:03:03.3]} 24. Qb7 {[%clk 0:06:44.5]} 24... Rxd7 {[%clk
0:03:04.2]} 25. Qxd7 {[%clk 0:06:45.4]} 25... Qd8 {[%clk 0:03:05.8]} 26. Rd1
{[%clk 0:06:35.1]} 26... Qxd7 {[%clk 0:03:04.8]} 27. Rxd7 {[%clk 0:06:35.2]}
27... Rc7 {[%clk 0:03:05.8]} 28. Rd8 {[%clk 0:06:33.2]} 28... Kf8 {[%clk
0:03:05.2]} 29. Nd4 {[%clk 0:06:14.1]} 29... Ke7 {[%clk 0:03:06.1]} 30. Ra8
{[%clk 0:06:14.1]} 30... Nd6 {[%clk 0:02:44]} 31. b5 {[%clk 0:05:37]} 31... Nc8
{[%clk 0:02:12.3]} 32. Nc6+ {[%clk 0:04:36.7]} 32... Kd6 {[%clk 0:02:11.6]} 33.
f4 {[%clk 0:03:32.9]} 33... Kc5 {[%clk 0:01:52.8]} 34. a4 {[%clk 0:03:19.4]}
34... Kc4 {[%clk 0:01:46.7]} 35. Kf2 {[%clk 0:02:40.6]} 35... Kb3 {[%clk
0:01:40.3]} 36. a5 {[%clk 0:02:13.4]} 36... bxa5 {[%clk 0:01:41.4]} 37. Nxa5+
{[%clk 0:01:39]} 37... Kb4 {[%clk 0:01:38.2]} 38. Nb7 {[%clk 0:01:30.4]} 38...
Kxb5 {[%clk 0:01:00.8]} 39. Rb8 {[%clk 0:01:27.3]} 39... Rxb7 {[%clk 0:01:02.4]}
40. Rxb7+ {[%clk 0:01:26.9]} 40... Kc6 {[%clk 0:01:01.1]} 41. Rxf7 {[%clk
0:01:27.1]} 41... a5 {[%clk 0:01:02.6]} 42. Ke2 {[%clk 0:01:19.6]} 42... a4
{[%clk 0:01:03.4]} 43. Kd3 {[%clk 0:01:20.2]} 43... Kb5 {[%clk 0:01:05.3]} 44.
Rxg7 {[%clk 0:01:18.9]} 44... Nb6 {[%clk 0:01:06.6]} 45. Rxh7 {[%clk 0:01:15.6]}
45... a3 {[%clk 0:01:07.9]} 46. Kc3 {[%clk 0:01:12.9]} 46... Nc4 {[%clk
0:01:05.2]} 47. Rb7+ {[%clk 0:01:07.9]} 47... Ka6 {[%clk 0:01:06.7]} 48. Rb1
{[%clk 0:01:01.1]} 1-0